bitfinex-derivatives/quotes_ETHF0:USTF0_20240927
["timestamp","ask_amount","ask_price","bid_price","bid_amount"]
[1727415691417,0.37803,2644.9,2644.8,1.1686]
[1727415691821,3.32802,2645.0,2644.8,1.1686]
[1727415692012,0.37802,2644.9,2644.8,1.1686]
[1727415693118,0.37802,2644.9,2644.8,0.3748]
[1727415694113,0.37804,2644.8,2644.7,3.2078]
[1727415694315,2.95,2644.8,2644.7,3.2078]
[1727415694716,3.32804,2644.8,2644.7,3.2078]
[1727415696522,3.32804,2644.8,2644.7,3.5102]
[1727415697823,3.32804,2644.8,2644.7,0.3024]
[1727415698215,2.95,2644.8,2644.7,0.3024]
[1727415698420,3.32804,2644.8,2644.7,0.6048]
[1727415699622,7.10884,2644.8,2644.7,0.6048]
[1727415700016,7.49684,2644.8,2644.7,0.6048]
[1727415700421,5.90684,2644.8,2644.7,0.6048]
[1727415700617,4.54684,2644.8,2644.7,0.6048]
[1727415700813,5.90684,2644.8,2644.7,0.6048]
[1727415704223,11.63326163,2644.8,2644.1,3.2078]
[1727415704431,1.36,2644.3,2644.1,3.6104]
[1727415704625,1.73811,2644.3,2644.1,3.6104]
[1727415705325,1.36,2644.3,2644.1,3.6104]
[1727415706029,1.36,2644.3,2644.1,4.2154]
[1727415706331,1.73811,2644.3,2644.1,4.2154]
[1727415706828,0.37812,2644.2,2644.1,4.2154]
[1727415707024,1.73812,2644.3,2644.1,4.2154]
[1727415708837,1.36,2644.3,2644.1,4.2154]
[1727415709731,1.36,2644.2,2644.1,4.59353]
[1727415714839,1.36,2644.2,2644.1,4.2154]
[1727415715139,1.36,2644.2,2644.1,4.59354]
[1727415715731,1.36,2644.2,2644.1,5.58541188]
[1727415716830,1.36,2644.2,2644.1,5.20727188]
[1727415717234,1.36,2644.2,2644.1,5.58541188]
[1727415717535,1.36,2644.2,2644.1,5.20727188]
[1727415717730,1.36,2644.2,2644.1,6.91128864]
[1727415718036,1.36,2644.2,2644.1,5.20727188]
[1727415718228,1.36,2644.2,2644.1,6.91146473]
[1727415718630,1.36,2644.2,2644.1,6.91150844]
[1727415719334,1.36,2644.2,2644.1,5.91963656]
[1727415719637,1.36,2644.2,2644.1,6.91042202]
[1727415719938,1.36,2644.2,2644.1,4.2154]
[1727415720141,1.36,2644.2,2644.1,6.91062453]
[1727415720632,1.36,2644.2,2644.1,6.2979781]
[1727415721133,1.36,2644.2,2644.1,7.78521049]
[1727415721331,1.36,2644.3,2644.1,7.78521049]
[1727415721537,1.36,2644.3,2644.2,0.99095433]
[1727415722738,1.36,2644.3,2644.1,4.29104]
[1727415723231,1.36,2644.3,2644.1,3.9129]
[1727415723435,1.36,2644.5,2644.2,0.37812]
[1727415723833,1.18487596,2644.8,2644.1,5.20635433]
[1727415724028,1.36,2644.7,2644.4,3.58589]
[1727415724235,1.36,2644.7,2644.5,1.1633]
[1727415724636,1.73806,2644.7,2644.5,1.1633]
[1727415726848,1.36,2644.7,2644.5,1.1633]
[1727415727039,1.73806,2644.7,2644.5,1.1633]
[1727415728745,0.37807,2644.6,2644.5,1.4658]
[1727415730739,1.18507799,2644.6,2644.5,1.4658]
[1727415730940,1.73805,2644.7,2644.5,1.4658]
[1727415732256,1.36,2644.7,2644.5,1.4658]
[1727415732455,2.16703807,2644.7,2644.5,1.4658]
[1727415732755,1.73805,2644.7,2644.5,1.4658]
[1727415733159,0.37804,2644.9,2644.5,1.4658]
[1727415733451,1.36,2644.6,2644.5,2.45675433]
[1727415735457,1.36,2644.6,2644.5,1.4658]
[1727415738258,1.36,2644.6,2644.5,2.45675433]
[1727415739366,1.36,2644.6,2644.5,1.4658]
[1727415739554,1.73807,2644.6,2644.5,1.29345433]
[1727415739750,1.73807,2644.6,2644.5,0.3025]
[1727415740460,1.36,2644.6,2644.5,0.3025]
[1727415740653,1.73807,2644.6,2644.5,0.3025]
[1727415740849,11.51967,2644.6,2644.5,0.3025]
[1727415741056,0.3781,2644.4,2644.3,3.2078]
[1727415741256,1.7381,2644.4,2644.3,3.2078]
[1727415741459,6.32656989,2644.4,2644.3,3.2078]
[1727415742360,1.18496989,2644.4,2644.3,3.2078]
[1727415742561,1.7381,2644.4,2644.3,3.2078]
[1727415742861,1.7381,2644.4,2644.3,3.3392]
[1727415743055,2.54482572,2644.4,2644.3,3.3392]
[1727415743262,1.7381,2644.4,2644.3,3.3392]
[1727415743956,1.7381,2644.4,2644.3,0.1314]
[1727415745253,2.54487169,2644.4,2644.3,0.1314]
[1727415745957,6.32647169,2644.4,2644.3,0.1314]
[1727415746160,9.53427169,2644.4,2644.3,0.1314]
[1727415750261,9.53427169,2644.4,2644.3,0.4226]
[1727415751669,10.47952169,2644.4,2644.3,0.4226]
[1727415752568,9.11952169,2644.4,2644.3,0.4226]
[1727415752762,10.47952169,2644.4,2644.3,0.4226]
[1727415755065,9.53427169,2644.4,2644.3,0.4226]
[1727415755268,1.7381,2644.4,2644.3,0.4226]
[1727415759671,4.9459,2644.4,2644.3,0.4226]
[1727415761374,1.7381,2644.4,2644.3,0.4226]
[1727415761878,4.9459,2644.4,2644.3,0.4226]
[1727415763081,1.7381,2644.4,2644.3,0.4226]
[1727415763386,4.9459,2644.4,2644.3,0.4226]
[1727415763981,1.7381,2644.4,2644.3,0.4226]
[1727415764182,4.9459,2644.4,2644.3,0.4226]
[1727415764871,0.3781,2644.4,2644.3,0.4226]
[1727415765069,1.7381,2644.4,2644.3,0.4226]
[1727415769686,0.10359381,2644.7,2644.3,0.4226]
[1727415769882,1.36,2644.4,2644.3,0.4226]
[1727415771181,3.2078,2644.8,2644.3,5.19515433]
[1727415771481,1.36,2644.7,2644.6,3.58587]
[1727415771680,0.7438,2644.8,2644.6,5.39461757]
[1727415771877,1.36,2644.9,2644.6,5.39461757]
[1727415774092,0.378,2645.1,2644.6,5.39461757]
[1727415774294,1.36,2644.7,2644.6,5.39461757]
[1727415774492,3.2078,2645.2,2644.6,5.39461757]
[1727415774493,0.37799,2645.2,2644.7,0.37804]
[1727415774692,4.8134,2645.6,2644.9,3.2078]
[1727415774889,0.80554543,2645.5,2645.0,0.7991]
[1727415775190,0.37798,2645.3,2645.0,0.7991]
[1727415775585,3.6998365,2645.6,2645.0,0.7991]
[1727415775586,3.3122365,2645.6,2645.0,0.7991]
[1727415775780,3.3122365,2645.6,2645.0,1.90944757]
[1727415775781,1.36,2645.1,2645.0,1.90944757]
[1727415776190,0.37793,2645.6,2645.0,5.07811]
[1727415776389,5.28139331,2645.8,2645.2,3.2078]
[1727415776695,0.37797,2645.4,2645.2,3.2078]
[1727415776893,0.37797,2645.3,2645.2,3.2078]
[1727415777990,1.73797,2645.3,2645.2,3.2078]
[1727415780097,1.73797,2645.3,2645.2,3.5102]
[1727415783702,1.73797,2645.3,2645.2,0.3024]
[1727415790598,1.73797,2645.3,2645.2,0.4225]
[1727415792303,6.4629,2645.3,2645.2,0.4225]
[1727415792503,6.4629,2645.3,2645.2,0.1201]
[1727415792709,0.37802,2644.9,2644.8,3.2078]
[1727415792910,1.73802,2644.9,2644.8,3.2078]
[1727415793105,1.36,2644.9,2644.8,3.2078]
[1727415793305,1.73802,2644.9,2644.8,3.2078]
[1727415794206,1.73802,2644.9,2644.8,3.5102]
[1727415794408,1.73802,2644.9,2644.8,3.6303]
[1727415794806,1.73802,2644.9,2644.8,0.4225]
[1727415795021,2.68309,2644.9,2644.8,0.4225]
[1727415798006,1.73802,2644.9,2644.8,0.4225]
[1727415798306,2.68309,2644.9,2644.8,0.4225]
[1727415798510,1.73802,2644.9,2644.8,0.4225]
[1727415802807,0.37808,2644.5,2644.4,0.7896]
[1727415803013,0.37808,2644.5,2644.4,0.4068]
[1727415803215,0.37811,2644.3,2644.2,0.3758]
[1727415803410,1.73811,2644.3,2644.2,0.3758]
[1727415804008,0.37812,2644.2,2644.1,0.7929]
[1727415804412,0.37812,2644.2,2644.0,3.2078]
[1727415804413,0.37814,2644.1,2644.0,3.2078]
[1727415804614,1.73814,2644.1,2644.0,3.5103]
[1727415805510,5.52054,2644.1,2644.0,0.3025]
[1727415805815,8.72834,2644.1,2644.0,0.3025]
[1727415806207,14.3502,2644.1,2643.3,0.088]
[1727415806408,0.7899,2644.3,2643.3,0.378]
[1727415806409,4.54479,2644.0,2643.3,0.378]
[1727415806710,1.36,2643.4,2643.3,0.378]
[1727415807309,1.73824,2643.4,2643.3,0.378]
[1727415807711,1.73824,2643.4,2643.3,0.6806]
[1727415807904,1.36,2643.4,2643.3,0.6806]
[1727415822931,1.73824,2643.4,2643.3,0.6806]
[1727415825831,4.2577451,2643.9,2643.5,0.37822]
[1727415825832,1.36,2643.9,2643.5,0.37822]
[1727415826028,1.36,2643.9,2643.7,3.2078]
[1727415826326,1.36,2643.9,2643.8,0.7571]
[1727415827828,1.36,2643.9,2643.8,1.0596]
[1727415828135,1.36,2643.9,2643.8,0.3025]
[1727415828540,1.73817,2643.9,2643.8,0.3025]
[1727415828945,1.36,2643.9,2643.8,0.3025]
[1727415829143,1.73817,2643.9,2643.8,0.3025]
[1727415829939,1.36,2643.9,2643.8,3.5103]
[1727415830140,1.73817,2643.9,2643.8,3.5103]
[1727415830340,1.36,2643.9,2643.8,3.5103]
[1727415833245,1.36,2643.9,2643.8,0.3025]
[1727415833246,8.72837,2643.9,2643.8,0.3025]
[1727415833447,6.30527,2643.9,2643.8,0.3025]
[1727415833635,0.37821,2643.7,2643.2,4.75576]
[1727415833840,1.36,2643.3,2643.2,4.75576]
[1727415834250,1.36,2643.3,2643.2,8.53896]
[1727415835445,1.36,2643.3,2643.2,8.84156]
[1727415835949,1.36,2643.3,2643.2,3.5104]
[1727415835950,1.73825,2643.3,2643.2,3.5104]
[1727415836148,5.52145,2643.3,2643.2,0.3026]
[1727415836444,1.73825,2643.3,2643.2,0.3026]
[1727415850452,1.209,2643.8,2643.2,0.3026]
[1727415850453,0.94534,2644.2,2643.4,0.37823]
[1727415850655,1.36,2643.7,2643.5,4.96454757]
[1727415850848,1.36,2643.7,2643.5,5.34276757]
[1727415851047,1.36,2643.7,2643.5,4.96454757]
[1727415851457,1.36,2643.7,2643.5,5.34276757]
[1727415852244,1.36,2643.7,2643.5,4.96454757]
[1727415852451,1.36,2643.7,2643.5,5.34276757]
[1727415853652,1.36,2643.7,2643.6,0.37821]
[1727415854156,1.36,2643.7,2643.5,5.34276757]
[1727415854357,2.95,2643.8,2643.5,5.34276757]
[1727415854559,2.95,2643.8,2643.6,0.37821]
[1727415855057,2.95,2643.8,2643.7,0.4093]
[1727415855244,2.95,2644.0,2643.7,0.7875]
[1727415855655,2.95,2644.0,2643.8,3.2078]
[1727415855854,2.95,2644.4,2643.8,7.98034757]
[1727415856049,0.37811,2644.3,2643.9,1.36830757]
[1727415856255,2.95,2644.2,2644.0,0.7981]
[1727415856761,2.95,2644.2,2644.1,0.4093]
[1727415861163,0.37814,2644.1,2644.0,3.6175]
[1727415861358,0.74904,2644.1,2644.0,3.6175]
[1727415861968,0.3709,2644.1,2644.0,3.6175]
[1727415864167,2.95,2644.2,2644.0,3.6175]
[1727415865056,3.32812,2644.2,2644.0,3.6175]
[1727415865260,2.95,2644.2,2644.0,3.92]
[1727415866770,2.95,2644.2,2644.0,3.5103]
[1727415866965,0.77494,2644.1,2644.0,0.3025]
[1727415867158,0.77494,2644.1,2644.0,0.00100174]
[1727415867159,5.50269,2644.1,2644.0,0.00100174]
[1727415867366,0.3782,2643.7,2643.4,0.99014757]
[1727415867670,3.72501,2643.6,2643.3,0.8014]
[1727415867863,3.3468,2643.6,2643.3,1.17965]
[1727415869267,3.3468,2643.6,2643.4,0.3026]
[1727415870371,0.3968,2643.6,2643.4,0.3026]
[1727415871065,0.3968,2643.6,2643.4,3.5104]
[1727415872569,0.3968,2643.6,2643.4,0.3026]
[1727415872778,0.3968,2643.6,2643.4,3.5104]
[1727415872978,0.3968,2643.6,2643.4,3.88864]
[1727415874974,0.3968,2643.6,2643.4,0.68084]
[1727415875174,0.3968,2643.6,2643.5,3.2078]
[1727415877773,0.3968,2643.6,2643.5,3.58602]
[1727415878177,1.36,2643.8,2643.5,7.36842]
[1727415878383,1.36,2643.8,2643.5,3.58602]
[1727415878776,0.37822,2643.5,2643.4,0.3026]
[1727415878975,1.73822,2643.5,2643.4,0.3026]
[1727415880080,0.76281,2643.7,2643.4,0.3026]
[1727415880280,0.3865,2643.9,2643.4,0.3026]
[1727415880281,1.36,2643.8,2643.4,0.3026]
[1727415880478,0.3865,2643.9,2643.7,0.37819]
[1727415880684,0.3865,2643.9,2643.6,3.586]
[1727415881880,1.7465,2643.9,2643.6,3.586]
[1727415882285,0.3865,2643.9,2643.6,3.586]
[1727415883080,0.3865,2643.9,2643.6,0.3782]
[1727415883387,0.3865,2643.9,2643.5,4.3794]
[1727415883894,0.3865,2643.9,2643.6,0.3782]
[1727415886092,0.3865,2643.9,2643.6,3.586]
[1727415886596,0.3865,2643.9,2643.6,3.2078]
[1727415888696,0.3865,2643.9,2643.6,3.586]
[1727415888890,2.95,2643.7,2643.6,3.2078]
[1727415889096,0.37821,2643.6,2643.5,1.1716]
[1727415889295,0.37821,2643.6,2643.3,3.2078]
[1727415889488,3.3261,2643.5,2643.3,3.5859]
[1727415889689,3.7066,2643.5,2643.3,3.5859]
[1727415890288,3.7066,2643.5,2643.3,3.2078]
[1727415890493,3.7066,2643.5,2643.0,3.2078]
[1727415890494,0.37826,2643.3,2643.0,3.2078]
[1727415890685,3.32826,2643.3,2643.0,3.2078]
[1727415890886,3.32826,2643.3,2643.0,3.5104]
[1727415891783,0.37827,2643.2,2643.0,3.5104]
[1727415891989,2.95,2643.1,2643.0,3.5104]
[1727415892201,3.3265,2643.1,2643.0,3.5104]
[1727415892385,3.3265,2643.1,2643.0,0.3026]
[1727415893488,0.3765,2643.1,2643.0,0.3026]
[1727415894192,3.3265,2643.1,2643.0,0.3026]
[1727415900302,3.3305,2643.5,2643.0,7.2936]
[1727415900498,0.3749,2643.6,2643.0,7.45054757]
[1727415900804,4.078,2643.8,2643.5,0.37822]
[1727415901011,2.95,2644.0,2643.6,4.7737]
[1727415901204,3.32816,2644.0,2643.6,4.3955]
[1727415903922,3.32816,2644.0,2643.6,4.77371]
[1727415903923,2.95,2644.0,2643.6,4.77371]
[1727415904900,3.32816,2644.0,2643.6,4.3955]
[1727415906008,0.75304,2644.1,2643.6,4.7737]
[1727415906305,3.70304,2644.1,2643.6,4.7737]
[1727415906513,0.37815,2644.0,2643.6,4.3955]
[1727415907307,3.70305,2644.1,2643.6,4.7737]
[1727415907813,0.37816,2644.0,2643.6,4.7737]
[1727415908417,3.70305,2644.1,2643.6,4.7737]
[1727415908915,3.3249,2644.1,2643.6,4.3955]
[1727415909610,0.37815,2644.0,2643.6,4.6981]
[1727415909822,0.37817,2643.9,2643.6,4.6981]
[1727415910312,0.37818,2643.8,2643.6,4.6981]
[1727415910813,3.32817,2643.9,2643.6,5.68824757]
[1727415911117,3.32817,2643.9,2643.7,3.2078]
[1727415911316,0.37818,2643.8,2643.7,3.2078]
[1727415911513,3.32818,2643.9,2643.7,3.2078]
[1727415912011,2.95,2643.9,2643.7,3.2078]
[1727415913412,3.32817,2643.9,2643.7,3.2078]
[1727415914219,3.32817,2643.9,2643.6,2.48044757]
[1727415914513,3.32817,2643.9,2643.7,3.2078]
[1727415915916,0.3782,2643.7,2643.6,1.29274757]
[1727415916217,0.3782,2643.7,2643.6,0.3026]
[1727415916527,4.5376,2643.7,2643.6,0.3026]
[1727415922221,0.7552,2643.7,2643.6,0.3026]
[1727415922716,4.5376,2643.7,2643.6,0.3026]
[1727415923118,0.7552,2643.7,2643.6,0.3026]
[1727415923329,0.377,2643.7,2643.6,0.3026]
[1727415924827,0.7552,2643.7,2643.6,0.3026]
[1727415933930,0.377,2643.7,2643.6,0.3026]
[1727415934425,2.95,2643.9,2643.6,0.3026]
[1727415934626,3.32817,2643.9,2643.6,0.3026]
[1727415935930,0.37818,2643.8,2643.6,0.3026]
[1727415936730,2.95,2643.7,2643.6,0.3026]
[1727415938436,3.70766,2644.0,2643.6,4.46321]
[1727415938628,3.70766,2644.0,2643.6,0.68081]
[1727415939132,3.70766,2644.0,2643.6,1.67095757]
[1727415939334,0.37817,2643.9,2643.6,1.29274757]
[1727415939733,0.37817,2643.9,2643.6,0.3026]
[1727415940433,1.36,2643.8,2643.6,0.3026]
[1727415942232,1.73819,2643.8,2643.6,0.3026]
[1727415942433,1.36,2643.8,2643.6,0.3026]
[1727415943527,1.73819,2643.8,2643.6,0.3026]
[1727415944130,0.3782,2643.7,2643.6,0.3026]
[1727415944731,0.7647,2643.7,2643.6,0.3026]
[1727415945133,1.57229538,2643.7,2643.6,0.3026]
[1727415945723,4.78009538,2643.7,2643.6,0.3026]
[1727415947233,1.57229538,2643.7,2643.6,0.3026]
[1727415948038,4.78009538,2643.7,2643.6,0.3026]
[1727415948546,7.7549,2643.7,2643.6,0.3026]
[1727415948930,3.9725,2643.7,2643.6,0.3026]
[1727415951342,0.7647,2643.7,2643.6,0.3026]
[1727415956442,1.57258644,2643.7,2643.6,0.3026]
[1727415956648,2.93258644,2643.7,2643.6,0.3026]
[1727415960252,6.71498644,2643.7,2643.6,0.3026]
[1727415961445,2.93258644,2643.7,2643.6,0.3026]
[1727415962443,0.80788644,2643.7,2643.6,0.3026]
[1727415962750,1.36,2643.8,2643.6,8.66134757]
[1727415962937,1.36,2643.8,2643.7,1.37094757]
[1727415963138,1.36,2643.8,2643.7,0.3808]
[1727415964943,1.36,2643.8,2643.7,0.6834]
[1727415965749,4.94598,2643.8,2643.7,0.6834]
[1727415965942,5.75386644,2643.8,2643.7,0.6834]
[1727415966444,5.75386644,2643.8,2643.7,0.3026]
[1727415966745,2.54606644,2643.8,2643.7,0.3026]
[1727415967040,5.75386644,2643.8,2643.7,0.3026]
[1727415967438,9.53626644,2643.8,2643.7,0.3026]
[1727415971049,9.64092437,2643.8,2643.7,0.3026]
[1727415973051,5.85852437,2643.8,2643.7,0.3026]
[1727415978757,7.08252437,2643.8,2643.7,0.3026]
[1727415980954,8.02798437,2643.8,2643.7,0.3026]
[1727415982059,7.08252437,2643.8,2643.7,0.3026]
[1727415985656,2.16788644,2643.8,2643.7,0.3026]
[1727415985970,2.54606644,2643.8,2643.7,0.3026]
[1727415986866,2.92306644,2643.8,2643.7,0.3026]
[1727415990673,2.54606644,2643.8,2643.7,0.3026]
[1727415990874,2.54606644,2643.8,2643.7,0.681]
[1727415993073,1.18606644,2643.8,2643.7,0.681]
[1727415993277,2.54606644,2643.8,2643.7,0.681]
[1727415994173,2.16788644,2643.8,2643.7,0.681]
[1727415994468,2.54606644,2643.8,2643.7,0.681]
[1727415995874,2.54606644,2643.8,2643.7,0.3026]
[1727416001290,7.27614644,2643.8,2643.3,4.2000724]
[1727416001482,7.27614644,2643.8,2643.4,0.7795]
[1727416001483,3.58602,2643.5,2643.4,0.7795]
[1727416001683,4.39390644,2643.5,2643.4,0.7795]
[1727416003086,4.39390644,2643.5,2643.4,1.0821]
[1727416004282,5.75390644,2643.5,2643.4,1.0821]
[1727416004885,2.54610644,2643.5,2643.4,1.0821]
[1727416005785,2.54610644,2643.5,2643.4,2.0743724]
[1727416005786,1.36,2643.5,2643.4,2.0743724]
[1727416006381,1.73822,2643.5,2643.4,2.0743724]
[1727416006575,2.54691449,2643.5,2643.4,1.2948724]
[1727416006790,5.75471449,2643.5,2643.4,0.3026]
[1727416007184,6.12451449,2643.5,2643.4,0.3026]
[1727416010486,2.91671449,2643.5,2643.4,0.3026]
[1727416010685,6.12451449,2643.5,2643.4,0.3026]
[1727416020487,6.50551449,2643.5,2643.4,0.3026]
[1727416031093,0.80869449,2643.5,2643.4,0.3026]
[1727416031394,1.36,2643.5,2643.4,0.3026]
[1727416031796,2.16869449,2643.5,2643.4,0.3026]
[1727416032896,1.36,2643.5,2643.4,0.3026]
[1727416033193,2.16869449,2643.5,2643.4,0.3026]
[1727416038199,2.54691449,2643.5,2643.4,0.3026]
[1727416038703,2.16869449,2643.5,2643.4,0.3026]
[1727416040198,2.16869449,2643.5,2643.4,1.2948724]
[1727416040407,2.16869449,2643.5,2643.4,0.3026]
[1727416040602,2.54691449,2643.5,2643.4,0.3026]
[1727416041606,2.54691449,2643.5,2643.4,1.2948724]
[1727416041908,2.54691449,2643.5,2643.4,0.3026]
[1727416044809,3.49248449,2643.5,2643.4,0.3026]
[1727416045005,3.90128449,2643.5,2643.4,0.3026]
[1727416045198,3.90128449,2643.5,2642.9,3.4729534]
[1727416045199,0.3783,2643.0,2642.9,3.4729534]
[1727416045406,0.3783,2643.0,2642.5,2.480681]
[1727416045407,0.37832,2642.8,2642.7,2.6458086]
[1727416045606,1.73832,2642.8,2642.7,1.1574]
[1727416045805,2.54686011,2642.8,2642.7,1.1574]
[1727416046216,1.73832,2642.8,2642.7,1.1574]
[1727416046915,2.54646079,2642.8,2642.7,1.3984]
[1727416047306,2.16814079,2642.8,2642.7,1.3984]
[1727416048208,0.37829,2643.1,2642.7,5.1824]
[1727416048517,1.36,2643.0,2642.7,5.1824]
[1727416048709,0.80768617,2643.2,2642.9,3.5861]
[1727416049013,1.36,2643.2,2643.0,3.16982352]
[1727416049215,1.36,2643.2,2643.1,0.7674]
[1727416049407,1.36,2643.2,2643.1,4.9283]
[1727416050407,0.80781943,2643.5,2643.1,6.60965651]
[1727416050612,1.36,2643.2,2643.1,1.1451]
[1727416050808,1.36,2643.2,2643.1,2.82646189]
[1727416051112,1.36,2643.2,2643.1,4.9283]
[1727416051614,1.36,2643.2,2643.1,5.30658]
[1727416051814,1.36,2643.2,2643.1,6.60969399]
[1727416052007,1.36,2643.2,2643.1,6.98797399]
[1727416052207,1.36,2643.2,2643.1,6.98801191]
[1727416052416,1.36,2643.2,2643.1,8.47642051]
[1727416052914,1.36,2643.2,2643.1,6.60973191]
[1727416053108,1.36,2643.2,2643.1,4.9283]
[1727416057714,1.36,2643.2,2643.1,1.1451]
[1727416058116,1.73827,2643.2,2643.1,1.1451]
[1727416058318,1.36,2643.2,2643.1,1.1451]
[1727416059210,0.78525,2643.4,2643.1,4.9283]
[1727416059407,1.36,2643.2,2643.1,1.1451]
[1727416060624,1.36,2643.2,2643.1,4.9283]
[1727416060820,1.36,2643.2,2643.1,1.1451]
[1727416061016,1.36,2643.2,2643.1,4.9283]
[1727416061215,1.36,2643.2,2643.1,1.1451]
[1727416061419,1.36,2643.2,2643.1,4.9283]
[1727416061825,1.36,2643.2,2643.1,1.1451]
[1727416062129,1.73827,2643.2,2643.1,1.1451]
[1727416063119,0.3783,2643.1,2642.9,4.6962086]
[1727416063326,0.37831,2642.9,2642.8,2.2661086]
[1727416063513,0.37831,2642.9,2642.8,0.7777]
[1727416063514,1.73831,2642.9,2642.8,0.7777]
[1727416064424,0.37832,2642.8,2642.7,0.241]
[1727416066823,1.73832,2642.9,2642.7,0.241]
[1727416067027,1.36,2642.9,2642.7,0.241]
[1727416067223,1.73832,2642.9,2642.7,0.241]
[1727416069133,1.36,2642.9,2642.7,0.241]
[1727416070525,1.73831,2642.9,2642.7,0.241]
[1727416071528,1.36,2642.9,2642.7,0.241]
[1727416071725,1.73832,2642.9,2642.7,0.241]
[1727416071920,0.37832,2642.8,2642.7,0.241]
[1727416072424,0.78072,2642.8,2642.7,0.241]
[1727416074932,0.37832,2642.8,2642.7,0.241]
[1727416076335,3.58612,2642.8,2642.7,0.241]
[1727416076741,0.37832,2642.8,2642.7,0.241]
[1727416077426,4.16232,2642.8,2642.7,0.241]
[1727416079031,3.58612,2642.8,2642.7,0.241]
[1727416079433,0.37832,2642.8,2642.7,0.241]
[1727416079739,4.94612,2642.8,2642.7,0.241]
[1727416086136,1.73832,2642.8,2642.7,0.241]
[1727416086333,0.7714,2643.0,2642.7,0.241]
[1727416086543,1.36,2642.9,2642.8,0.7797]
[1727416086840,1.36,2642.9,2642.8,1.1532]
[1727416087542,0.37826,2643.3,2642.8,14.52331]
[1727416087749,1.36,2643.2,2642.8,4.73931]
[1727416088045,0.3713,2643.6,2643.0,0.37829]
[1727416088240,0.3713,2643.6,2642.9,1.36]
[1727416088241,1.36,2643.4,2643.1,4.94608]
[1727416088436,1.36,2643.4,2643.1,4.5678]
[1727416088641,1.36,2643.4,2643.2,4.1567]
[1727416088841,1.36,2643.4,2643.3,0.7797]
[1727416089041,1.36,2643.4,2643.3,4.5629]
[1727416091144,1.36,2643.4,2643.3,0.7797]
[1727416095750,1.73824,2643.4,2643.3,0.4099]
[1727416096055,1.73824,2643.4,2643.3,0.7803]
[1727416096446,1.36,2643.4,2643.1,3.2078]
[1727416096650,0.37827,2643.2,2643.1,3.2078]
[1727416097755,1.7652,2643.3,2643.1,3.2078]
[1727416097945,0.37827,2643.2,2643.1,3.2078]
[1727416098649,1.7652,2643.3,2643.1,3.2078]
[1727416098856,2.14346,2643.3,2643.1,3.2078]
[1727416099055,1.7652,2643.3,2643.1,3.2078]
[1727416099354,1.36,2643.3,2643.1,3.2078]
[1727416099754,1.73825,2643.3,2643.0,3.4484]
[1727416099946,1.36,2643.1,2643.0,3.4484]
[1727416100148,0.37823,2643.5,2643.0,3.8267]
[1727416100343,1.36,2643.2,2643.0,3.8267]
[1727416100548,0.37823,2643.5,2643.0,3.4484]
[1727416100748,1.36,2643.3,2643.1,0.37828]
[1727416101256,1.36,2643.3,2643.2,3.7832]
[1727416102451,1.36,2643.3,2643.2,9.7832]
[1727416103049,1.36,2643.3,2643.2,10.16147]
[1727416103352,1.36,2643.3,2643.2,9.7832]
[1727416104559,1.36,2643.5,2643.2,9.7832]
[1727416104760,1.36,2643.5,2643.3,0.7748]
[1727416105055,1.36,2643.5,2643.4,0.3915]
[1727416105558,1.73822,2643.5,2643.4,0.3915]
[1727416107754,1.73822,2643.5,2643.3,0.7748]
[1727416107755,0.37824,2643.4,2643.3,0.7748]
[1727416108162,0.37824,2643.4,2643.3,4.558]
[1727416109958,0.37824,2643.4,2643.3,0.7748]
[1727416110553,0.37824,2643.4,2643.3,4.558]
[1727416110760,0.37824,2643.4,2643.3,0.7748]
[1727416112464,1.36,2643.5,2643.3,4.558]
[1727416112658,1.36,2643.5,2643.3,0.7748]
[1727416113671,1.73823,2643.5,2643.3,0.7748]
[1727416114457,1.36,2643.5,2643.3,0.7748]
[1727416115061,1.73823,2643.5,2643.3,0.7748]
[1727416115365,0.37824,2643.4,2643.3,0.7748]
[1727416115767,0.37824,2643.4,2643.3,4.558]
[1727416116259,1.73823,2643.5,2643.3,4.558]
[1727416116464,0.4093,2643.8,2643.3,3.9826]
[1727416116658,2.14749,2643.8,2643.3,4.36085]
[1727416117064,2.14748,2643.8,2643.4,1.97843]
[1727416117370,1.73815,2644.1,2643.7,1.36]
[1727416117561,0.37815,2644.0,2643.8,0.4011]
[1727416117761,1.73815,2644.1,2643.8,0.7941]
[1727416118468,0.3916,2644.3,2644.0,1.36]
[1727416118666,0.3916,2644.3,2644.1,0.3938]
[1727416118870,0.76972,2644.3,2644.1,0.3938]
[1727416119073,2.12972,2644.3,2644.2,0.393]
[1727416119869,1.7516,2644.3,2644.2,0.393]
[1727416120463,1.73809,2644.5,2644.2,0.393]
[1727416120662,1.73809,2644.5,2644.3,0.3726]
[1727416121561,0.3781,2644.4,2644.3,0.3726]
[1727416121961,1.73809,2644.5,2644.3,0.3726]
[1727416123272,0.3867,2644.6,2644.3,0.3726]
[1727416123474,1.36,2644.5,2644.3,0.3726]
[1727416124477,1.73809,2644.5,2644.3,0.3726]
[1727416124780,1.36,2644.5,2644.3,0.3726]
[1727416126070,1.73809,2644.5,2644.3,0.3726]
[1727416126479,1.36,2644.5,2644.3,0.3726]
[1727416127873,0.76477,2644.6,2644.3,0.3726]
[1727416128177,1.73808,2644.5,2644.3,0.3726]